bitfinex/quotes_SOLUSD_20260306
["timestamp","ask_amount","ask_price","bid_price","bid_amount"]
[1772805050023,67.67856086,86.612,86.507,0.5]
[1772805050024,0.28432314,86.559,86.507,0.5]
[1772805050201,40.43017707,86.569,86.507,0.5]
[1772805050405,0.28432314,86.568,86.507,0.5]
[1772805050617,0.28432314,86.539,86.485,11.56268205]
[1772805050802,0.28432314,86.539,86.461,7.41873782]
[1772805050803,0.28432314,86.529,86.483,0.5]
[1772805051012,0.28432314,86.539,86.491,0.5]
[1772805051208,0.28432314,86.568,86.494,0.5]
[1772805051411,0.28432314,86.559,86.494,0.5]
[1772805051704,10.48549421,86.54,86.494,0.5]
[1772805051908,132.84201039,86.569,86.494,0.5]
[1772805051909,0.28432314,86.549,86.494,0.5]
[1772805052131,0.28432314,86.547,86.496,0.5]
[1772805052822,0.28432314,86.539,86.49,1e-08]
[1772805053029,10.48549421,86.52,86.49,1e-08]
[1772805053327,46.21093412,86.56,86.49,1e-08]
[1772805053328,10.48549421,86.57,86.495,0.5]
[1772805053629,10.48549421,86.55,86.495,0.5]
[1772805054123,3.69383402,86.573,86.497,0.5]
[1772805054124,0.28432314,86.548,86.497,0.5]
[1772805054522,0.28432314,86.549,86.497,0.5]
[1772805054721,10.48549421,86.54,86.497,0.5]
[1772805055112,0.14216157,86.549,86.497,0.5]
[1772805055321,40.43484789,86.559,86.497,0.5]
[1772805055322,0.14216157,86.539,86.497,0.5]
[1772805055527,0.14216157,86.549,86.497,0.5]
[1772805055705,10.48549421,86.53,86.49,11.56200767]
[1772805056130,11.55622737,86.534,86.49,1e-08]
[1772805056513,0.14216157,86.519,86.49,1e-08]
[1772805056718,0.28432314,86.529,86.49,1e-08]
[1772805057141,0.14216157,86.549,86.49,1e-08]
[1772805057510,0.28432314,86.549,86.49,1e-08]
[1772805057710,48.24694086,86.571,86.49,1e-08]
[1772805057911,10.48549421,86.55,86.49,0.50000001]
[1772805058211,0.28432314,86.538,86.492,0.5]
[1772805058423,0.28432314,86.529,86.492,0.5]
[1772805058731,0.28432314,86.529,86.491,11.56189661]
[1772805058931,48.531264,86.529,86.491,11.56189661]
[1772805060122,48.531264,86.529,86.491,28.90474153]
[1772805060320,48.38910243,86.529,86.491,28.90474153]
[1772805060531,10.48549421,86.55,86.492,0.5]
[1772805060748,0.28432314,86.549,86.492,0.5]
[1772805060925,10.48549421,86.55,86.492,0.5]
[1772805061136,41.37762069,86.55,86.495,0.5]
[1772805061327,23.45270855,86.569,86.496,0.5]
[1772805061533,18.76216684,86.582,86.496,0.5]
[1772805061720,18.76216684,86.582,86.507,0.5]
[1772805061923,10.48549421,86.6,86.516,0.5]
[1772805062121,10.48549421,86.59,86.522,0.5]
[1772805062440,0.28432314,86.589,86.523,0.5]
[1772805062638,11.54881104,86.589,86.523,0.5]
[1772805062844,40.42083866,86.589,86.523,0.5]
[1772805063016,11.54881104,86.589,86.523,0.5]
[1772805063220,12.27491095,86.605,86.523,0.5]
[1772805063446,10.48549421,86.58,86.523,0.5]
[1772805063738,0.28432314,86.579,86.523,0.5]
[1772805064319,0.14216157,86.573,86.494,0.5]
[1772805064520,10.48549421,86.53,86.494,0.5]
[1772805064732,0.28432314,86.549,86.494,0.5]
[1772805064933,0.28432314,86.539,86.494,0.5]
[1772805065138,0.28432314,86.539,86.491,0.5]
[1772805066341,10.48549421,86.56,86.493,0.5]
[1772805066538,10.48549421,86.58,86.497,0.5]
[1772805066740,3.69383402,86.586,86.497,0.5]
[1772805066741,10.48549421,86.56,86.497,0.5]
[1772805067133,0.28432314,86.569,86.497,0.5]
[1772805067341,10.48549421,86.58,86.497,0.5]
[1772805067538,11.54747745,86.599,86.497,0.5]
[1772805067739,10.48549421,86.59,86.497,0.5]
[1772805067933,10.48549421,86.59,86.504,0.5]
[1772805068132,0.72822147,86.598,86.504,0.5]
[1772805068336,0.28432314,86.596,86.509,0.5]
[1772805068646,0.72822147,86.598,86.512,0.5]
[1772805068846,10.48549421,86.59,86.512,0.5]
[1772805069456,0.72822147,86.598,86.512,0.5]
[1772805069630,0.72822147,86.598,86.513,0.5]
[1772805069831,12.27585928,86.598,86.518,0.5]
[1772805070030,0.72822147,86.598,86.52,57.81104502]
[1772805070251,0.72822147,86.598,86.534,3.69383402]
[1772805070461,0.72822147,86.598,86.536,0.5]
[1772805070659,0.28432314,86.596,86.536,0.5]
[1772805071157,12.27584456,86.598,86.536,0.5]
[1772805071336,41.14487155,86.598,86.536,0.5]
[1772805071535,12.27584456,86.598,86.536,0.5]
[1772805072048,0.72822147,86.598,86.536,0.5]
[1772805072246,11.54801085,86.595,86.537,40.4451275]
[1772805072456,0.72822147,86.598,86.541,0.5]
[1772805072638,0.72822147,86.598,86.542,0.5]
[1772805072951,10.48549421,86.58,86.542,0.5]
[1772805073163,0.28432314,86.596,86.537,11.55575071]
[1772805073164,0.24362258,86.569,86.537,11.55575071]
[1772805073457,0.24362258,86.569,86.528,11.55695266]
[1772805074149,10.48549421,86.57,86.528,40.44933431]
[1772805074460,0.24362258,86.567,86.508,3.69383402]
[1772805074751,0.24362258,86.567,86.509,0.28432314]
[1772805075258,0.24362258,86.586,86.51,0.47337704]
[1772805076256,0.28432314,86.587,86.51,0.47337704]
[1772805076466,11.54921118,86.586,86.515,0.47337704]
[1772805076660,11.54921118,86.586,86.516,0.47337704]
[1772805076959,11.79163343,86.595,86.516,0.47337704]
[1772805077362,11.54790704,86.596,86.519,0.47337704]
[1772805077542,11.54790704,86.596,86.518,0.28432314]
[1772805077543,11.54692854,86.604,86.522,0.47337704]
[1772805078156,0.24362258,86.606,86.529,57.91013184]
[1772805078356,1e-08,86.598,86.534,0.47337704]
[1772805078560,0.24362258,86.597,86.541,0.47337704]
[1772805079739,0.24362258,86.589,86.541,0.47337704]
[1772805080356,0.24362258,86.588,86.541,0.47337704]
[1772805080744,0.24362258,86.585,86.542,40.44279078]
[1772805081147,0.28432314,86.586,86.543,0.47337704]
[1772805081367,0.24362258,86.579,86.532,11.55641843]
[1772805081548,0.24362258,86.579,86.533,0.47337704]
[1772805081750,11.5490778,86.587,86.534,0.47337704]
[1772805081956,11.54773233,86.598,86.537,0.47337704]
[1772805082646,0.24362258,86.589,86.539,0.47337704]
[1772805083045,10.48549421,86.57,86.528,0.47337704]
[1772805083295,0.24362258,86.579,86.528,0.47337704]
[1772805083444,0.24362258,86.578,86.528,0.47337704]
[1772805084051,0.24362258,86.588,86.528,0.47337704]
[1772805084359,0.24362259,86.598,86.528,0.47337704]
[1772805084867,0.24362258,86.632,86.538,4.16721106]
[1772805085051,0.24362258,86.632,86.535,4.82477569]
[1772805085052,11.54321201,86.631,86.544,0.47337704]
[1772805085451,0.24362258,86.632,86.547,0.47337704]
[1772805085642,0.24362258,86.63,86.547,0.47337704]
[1772805085846,11.54267134,86.636,86.547,0.47337704]
[1772805086047,11.54294552,86.633,86.549,0.47337704]
[1772805086255,0.24362258,86.632,86.549,0.47337704]
[1772805086656,28.85572844,86.638,86.553,3.69383402]
[1772805086657,11.54321201,86.631,86.553,3.69383402]
[1772805086861,0.24362258,86.63,86.555,0.47337704]
[1772805087262,28.85572844,86.638,86.556,0.47337704]
[1772805087263,11.54237221,86.638,86.556,0.47337704]
[1772805087462,0.24362258,86.633,86.561,0.47337704]
[1772805087667,0.24362258,86.619,86.561,0.47337704]
[1772805087850,0.24362258,86.609,86.561,0.47337704]
[1772805088457,0.24362258,86.608,86.561,0.47337704]
[1772805088664,0.28432314,86.606,86.563,0.47337704]
[1772805088867,11.54641079,86.607,86.563,0.47337704]
[1772805089468,11.54521454,86.616,86.564,0.47337704]
[1772805089867,0.24362258,86.619,86.566,0.47337704]
[1772805090084,11.82780165,86.629,86.566,0.47337704]
[1772805090283,11.54347851,86.629,86.567,0.47337704]
[1772805090480,7.08591494,86.634,86.567,0.47337704]
[1772805090673,11.7839563,86.653,86.572,0.47337704]
[1772805090872,0.24362258,86.672,86.573,0.47337704]
[1772805091080,0.24362258,86.672,86.575,0.47337704]
[1772805091467,0.24362258,86.671,86.575,0.47337704]
[1772805091784,0.24362258,86.671,86.571,3.69383402]
[1772805091785,0.24362258,86.658,86.58,0.45700055]
[1772805092181,0.14216157,86.659,86.58,0.45700055]
[1772805092182,0.24362258,86.648,86.58,0.45700055]
[1772805092782,0.24362258,86.645,86.585,0.45700055]
[1772805092986,0.24362258,86.645,86.586,0.45700055]
[1772805093687,0.24362258,86.638,86.586,0.45700055]
[1772805095166,0.24362258,86.635,86.587,40.42177231]
[1772805095570,0.24362258,86.635,86.587,11.5490778]
[1772805095877,0.24362258,86.628,86.587,11.5490778]
[1772805096458,0.28432314,86.636,86.588,0.45700055]
[1772805097082,0.28432314,86.646,86.59,0.45700055]
[1772805097284,0.24362258,86.638,86.589,11.54881104]
[1772805097582,0.24362258,86.628,86.58,11.55001155]
[1772805097773,0.24362258,86.618,86.57,0.45700055]
[1772805097975,0.24362258,86.629,86.57,0.45700055]
[1772805099080,69.2440854,86.65,86.57,0.45700055]
[1772805099081,0.52794572,86.616,86.57,0.45700055]
[1772805099287,0.24362258,86.608,86.564,11.55202784]
[1772805099585,0.24362258,86.599,86.561,11.55254675]
[1772805099887,0.24362258,86.599,86.562,0.45700055]
[1772805100073,0.24362258,86.615,86.562,0.45700055]
[1772805101483,0.24362258,86.609,86.564,0.45700055]
[1772805101688,0.24362258,86.598,86.553,12.01052381]
[1772805102476,0.24362258,86.598,86.545,0.45700055]
[1772805102670,0.24362258,86.588,86.545,0.45700055]
[1772805102875,0.24362258,86.559,86.514,11.55882284]
[1772805103075,8.51860971,86.594,86.514,11.55882284]
[1772805103076,10.48549421,86.55,86.514,12.01582339]
[1772805103469,0.24362258,86.539,86.496,0.45700055]
[1772805103669,0.24362258,86.538,86.496,0.45700055]
[1772805104587,11.55414851,86.549,86.496,0.45700055]
[1772805105692,5.77288826,86.563,86.499,0.45700055]
[1772805105886,11.55244791,86.562,86.502,0.45700055]
[1772805106195,11.55241329,86.562,86.502,0.45700055]
[1772805106494,7.64634204,86.608,86.513,0.45700055]
[1772805106786,11.54689888,86.604,86.513,0.45700055]
[1772805106994,0.24362258,86.589,86.513,0.45700055]
[1772805107209,0.24362258,86.589,86.497,40.46383111]
[1772805107210,0.24362258,86.558,86.5,0.45700055]
[1772805107366,0.24362258,86.538,86.489,0.45700055]
[1772805107693,11.5568191,86.529,86.491,11.56189661]
[1772805107896,40.44886685,86.529,86.489,0.45700055]
[1772805108076,40.44886685,86.529,86.49,11.5620303]
[1772805108077,0.24362258,86.528,86.49,11.5620303]
[1772805108291,0.24362258,86.528,86.491,0.45700055]
[1772805108992,0.24362258,86.528,86.48,0.1]
[1772805108993,10.49361126,86.5,86.48,0.1]
[1772805109188,10.73723384,86.5,86.458,12.02320826]
[1772805109397,0.14362258,86.499,86.458,12.02320826]
[1772805109574,0.42794572,86.499,86.458,0.45700055]
[1772805109779,0.42794572,86.499,86.444,28.92012693]
[1772805109780,10.49361126,86.49,86.46,0.05637742]
[1772805109995,0.28432314,86.497,86.46,0.05637742]
[1772805110288,10.49361126,86.49,86.46,0.05637742]
[1772805110599,0.28432314,86.489,86.46,0.05637742]
[1772805111105,40.4633633,86.498,86.46,0.05637742]
[1772805111292,11.56096094,86.498,86.46,0.05637742]
[1772805111481,0.28432314,86.497,86.46,0.55637742]
[1772805111680,0.28432314,86.488,86.46,0.05637742]
[1772805112099,11.56216397,86.489,86.46,0.05637742]
[1772805112793,11.56161941,86.494,86.461,0.5]
[1772805113187,13.28313148,86.499,86.461,0.5]
[1772805113706,13.28313148,86.499,86.463,0.5]
[1772805114276,12.91843426,86.499,86.465,3.69383402]
[1772805114482,14.50510118,86.52,86.486,0.5]
[1772805114694,24.99871244,86.52,86.486,0.5]
[1772805114905,24.99871244,86.52,86.462,40.48021094]
[1772805114906,10.49361126,86.51,86.463,0.5]
[1772805115082,0.28432314,86.519,86.463,0.5]
[1772805115891,10.49361126,86.51,86.465,0.5]
[1772805116181,0.28432314,86.509,86.465,0.5]
[1772805116381,10.49361126,86.51,86.465,0.5]
[1772805116604,0.28432314,86.517,86.465,0.5]
[1772805116781,10.49361126,86.51,86.464,40.4792746]
[1772805116983,0.28432314,86.517,86.465,0.5]
[1772805117196,14.50510118,86.519,86.465,0.5]
[1772805117884,14.50510118,86.519,86.464,98.30680975]
[1772805117885,14.50510118,86.519,86.467,0.5]
[1772805118299,11.55828844,86.518,86.467,0.5]
[1772805118498,14.50510118,86.519,86.467,0.5]
[1772805119093,14.50510118,86.519,86.468,0.5]
[1772805119679,8.17173545,86.543,86.472,0.5]
[1772805119899,11.55548365,86.539,86.474,0.5]
[1772805120305,8.17173545,86.543,86.478,0.5]
[1772805120490,10.49361126,86.52,86.478,0.5]
[1772805120689,0.28432314,86.539,86.478,0.5]
[1772805120896,10.49361126,86.53,86.478,0.5]
[1772805121992,0.28432314,86.537,86.48,0.5]
[1772805122603,0.14216157,86.542,86.467,3.69383402]
[1772805122902,0.14216157,86.542,86.419,0.5]
[1772805122903,0.28432314,86.479,86.419,0.5]
[1772805123106,1.15673799,86.492,86.419,0.5]
[1772805123323,10.49361126,86.47,86.432,0.5]
[1772805123603,3.69383402,86.488,86.432,0.5]
[1772805123806,1.15673799,86.487,86.432,0.5]
[1772805123986,11.56256503,86.486,86.434,0.5]
[1772805124192,1.15673799,86.485,86.434,0.5]
[1772805124724,10.49361126,86.48,86.434,0.5]
[1772805125019,0.28432314,86.479,86.434,0.5]
[1772805125210,0.28432314,86.469,86.434,0.5]
[1772805125396,10.49361126,86.46,86.431,0.71789057]
[1772805125820,0.28432314,86.469,86.431,0.71789057]
[1772805126017,0.28432314,86.467,86.431,0.71789057]
[1772805126219,0.28432314,86.467,86.432,0.5]
[1772805126407,0.28432314,86.467,86.431,0.71789057]
[1772805126408,0.28432314,86.467,86.433,0.5]
[1772805126609,0.28432314,86.467,86.431,0.71789057]
[1772805126910,11.56497201,86.468,86.431,1.21789057]
[1772805127106,11.56350096,86.479,86.432,0.5]
[1772805127808,11.56203029,86.49,86.435,0.5]
[1772805128010,11.56229765,86.488,86.437,0.5]
[1772805128206,1.15673799,86.487,86.437,0.5]
[1772805128608,1.15673799,86.497,86.438,0.5]
[1772805129030,12.71783259,86.497,86.438,0.5]
[1772805130126,12.71783259,86.497,86.441,0.5]
[1772805130819,11.55943258,86.51,86.444,0.5]
[1772805131335,1.15673799,86.519,86.445,0.5]
[1772805131516,11.55468253,86.545,86.463,0.5]
[1772805131828,1.15673799,86.544,86.463,0.5]
[1772805132026,7.84186318,86.546,86.472,0.5]
[1772805132324,46.17864852,86.621,86.538,0.5]
[1772805132325,11.55014495,86.579,86.538,0.5]
[1772805132515,1.15673799,86.578,86.538,0.5]
[1772805133033,7.07386819,86.591,86.539,0.47793057]
[1772805133348,0.4,86.589,86.539,0.47793057]
[1772805133926,0.4,86.637,86.54,0.47793057]
[1772805134102,11.54394061,86.626,86.549,0.47793057]
[1772805134304,0.4,86.637,86.549,0.47793057]
[1772805134517,28.85322504,86.646,86.554,0.47793057]
[1772805134725,11.5424935,86.637,86.562,0.47793057]
[1772805134933,7.06104298,86.647,86.562,0.47793057]
[1772805135131,11.54174754,86.642,86.562,0.47793057]
[1772805135425,7.06104298,86.647,86.568,0.47793057]
[1772805135623,7.06104298,86.647,86.567,0.28432314]
[1772805135624,7.06104298,86.647,86.575,0.47793057]
[1772805135827,11.53940913,86.66,86.576,0.47793057]
[1772805136027,11.53940913,86.66,86.563,4.82477569]
[1772805136028,0.4,86.676,86.595,3.69383402]
[1772805136325,0.2,86.68,86.597,0.47793057]
[1772805136326,11.53735217,86.675,86.597,0.47793057]
[1772805136833,11.53735217,86.675,86.575,57.55403558]
[1772805136834,0.4,86.609,86.519,0.47793057]
[1772805137132,10.49361126,86.57,86.521,0.47793057]
[1772805137305,10.49361126,86.56,86.521,0.47793057]
[1772805137510,0.4,86.55,86.518,11.31287023]
[1772805137723,10.49361126,86.55,86.52,0.47793057]
[1772805137929,0.28432314,86.563,86.519,0.47793057]
[1772805138218,10.49361126,86.53,86.486,0.5]
[1772805138528,0.28432314,86.543,86.486,12.06243348]
[1772805138829,0.28432314,86.529,86.486,0.5]
[1772805139132,10.49361126,86.52,86.474,0.5]
[1772805139333,10.49361126,86.51,86.46,0.5]
[1772805139512,0.28432314,86.509,86.46,0.5]
[1772805139720,10.49361126,86.49,86.447,19.03980021]
[1772805140113,10.49361126,86.49,86.448,11.5676476]
[1772805140314,10.49361126,86.5,86.449,0.5]
[1772805140626,10.49361126,86.49,86.449,0.5]
[1772805142215,11.56216397,86.489,86.45,11.56737998]
[1772805142530,10.49361126,86.48,86.437,0.5]
[1772805142732,0.28432314,86.479,86.437,0.5]
[1772805142938,0.28432314,86.488,86.43,0.1]
[1772805142939,0.28432314,86.473,86.43,0.1]
[1772805143137,10.49361126,86.46,86.43,0.1]
[1772805143813,0.28432314,86.459,86.43,0.1]
[1772805144133,11.56751379,86.449,86.43,0.1]
[1772805144714,40.48629827,86.449,86.43,0.1]
[1772805144919,11.56751379,86.449,86.43,0.1]
[1772805145434,11.56677234,86.455,86.43,0.1]
[1772805145742,10.49361126,86.45,86.43,0.1]
[1772805146118,11.56677234,86.455,86.43,0.1]
[1772805146736,11.5848197,86.49,86.43,0.1]
[1772805146737,0.28432314,86.465,86.43,0.1]
[1772805148039,0.14216157,86.477,86.43,0.6]
[1772805148342,0.28432314,86.477,86.431,11.56992282]
[1772805148543,10.49361126,86.47,86.431,11.56992282]
[1772805148846,0.28432314,86.469,86.43,0.1]
[1772805149020,0.28432314,86.469,86.431,11.56992282]
[1772805149430,40.47272138,86.478,86.431,11.56992282]
[1772805149623,0.28432314,86.477,86.431,12.06992282]
[1772805150426,0.28432314,86.475,86.432,0.5]
[1772805150621,10.49361126,86.47,86.43,0.1]
[1772805150860,10.49361126,86.45,86.43,0.1]
[1772805151431,10.49361126,86.44,86.43,0.1]
[1772805151826,10.49361126,86.45,86.43,0.1]
[1772805152041,0.28432314,86.475,86.43,0.6]
[1772805152538,0.14216157,86.475,86.431,11.56992282]
[1772805152728,10.49361126,86.46,86.43,11.66996571]
[1772805152928,11.56390212,86.476,86.431,0.5]
[1772805153125,46.22390647,86.536,86.434,0.5]
[1772805153126,10.49361126,86.5,86.434,0.5]
[1772805153548,46.20214983,86.577,86.435,0.5]
[1772805153729,10.49361126,86.54,86.436,0.5]
[1772805153926,0.28432314,86.529,86.436,0.5]
[1772805154124,10.49361126,86.54,86.437,4.82477569]
[1772805154329,10.49361126,86.54,86.448,3.69383402]
[1772805154632,11.55247274,86.562,86.465,0.5]
[1772805154833,0.28432314,86.559,86.465,0.5]
[1772805155041,10.49361126,86.55,86.465,0.5]
[1772805155240,10.49361126,86.54,86.465,0.5]
[1772805155424,10.49361126,86.55,86.465,0.5]
[1772805155625,10.49361126,86.56,86.465,0.5]
[1772805155931,0.28432314,86.559,86.465,0.5]
[1772805156334,10.49361126,86.56,86.465,0.5]
[1772805156527,40.43484789,86.559,86.466,86.73929636]
[1772805156732,40.43484789,86.559,86.471,0.5]
[1772805156934,0.28432314,86.558,86.471,0.5]
[1772805157133,0.14216157,86.549,86.471,0.5]
[1772805157338,0.28432314,86.549,86.471,0.5]
[1772805157733,0.28432314,86.539,86.471,0.5]
[1772805157933,10.49361126,86.53,86.471,0.5]
[1772805158149,0.28432314,86.539,86.471,0.5]
[1772805158649,0.28432314,86.537,86.476,0.5]
[1772805159037,10.49361126,86.53,86.476,0.5]
[1772805159249,40.44466014,86.538,86.476,0.5]
[1772805159250,11.55561718,86.538,86.476,0.5]
[1772805159452,11.55561718,86.538,86.477,0.5]
[1772805159954,0.28432314,86.537,86.477,0.5]
[1772805160341,11.55504584,86.543,86.477,0.5]
[1772805160543,10.49361126,86.54,86.477,0.5]
[1772805160744,11.55548365,86.539,86.48,0.5]
[1772805160937,10.49361126,86.53,86.48,0.5]
[1772805161458,0.28432314,86.519,86.478,11.56363468]
[1772805161655,10.49361126,86.53,86.479,0.5]
[1772805161836,0.28432314,86.538,86.479,0.5]
[1772805162638,11.55492506,86.544,86.48,0.5]
[1772805162845,11.55492506,86.544,86.483,0.5]
[1772805163148,10.49361126,86.53,86.483,0.5]
[1772805163348,0.28432314,86.539,86.483,0.5]
[1772805164062,0.28432314,86.539,86.481,40.47131739]
[1772805164063,11.55334758,86.555,86.485,0.28432314]
[1772805164239,11.55334758,86.555,86.486,0.5]
[1772805164859,18.61477615,86.563,86.492,0.5]
[1772805165063,7.06244383,86.563,86.492,0.5]
[1772805165844,11.55241329,86.562,86.492,0.5]
[1772805166142,11.54890625,86.589,86.503,0.5]
[1772805166558,0.28432314,86.588,86.503,0.5]
[1772805166875,10.49361126,86.58,86.509,0.5]
[1772805167040,10.49361126,86.57,86.509,0.5]
[1772805167739,10.49361126,86.55,86.509,0.5]
[1772805168060,0.28432314,86.564,86.509,0.5]
[1772805168061,0.28432314,86.559,86.509,0.5]
[1772805168863,10.48810612,86.56,86.511,0.5]
[1772805169077,11.55281368,86.559,86.511,0.5]
[1772805169947,11.55217776,86.564,86.511,0.5]
[1772805170146,11.55217776,86.564,86.512,0.5]
[1772805170879,10.48810612,86.56,86.514,0.5]
[1772805171566,0.28432314,86.568,86.514,0.5]
[1772805172243,11.55147916,86.569,86.514,0.5]
[1772805172847,40.43017707,86.569,86.516,0.5]
[1772805173337,0.14216157,86.568,86.516,0.5]
[1772805173758,40.43017707,86.569,86.516,0.5]
[1772805173759,11.55147916,86.569,86.516,0.5]
[1772805174173,11.55027836,86.578,86.519,0.5]
[1772805174640,11.55027836,86.578,86.519,0.14216157]
[1772805174841,11.55027836,86.578,86.52,0.5]
[1772805175042,0.28432314,86.588,86.525,0.5]
[1772805175258,0.28432314,86.588,86.526,0.5]
[1772805175565,10.48810612,86.58,86.526,0.5]
[1772805176057,11.54881104,86.589,86.526,0.5]
[1772805176461,7.04799894,86.597,86.526,0.5]
[1772805176966,7.04799894,86.597,86.531,0.5]
[1772805177171,7.04799894,86.597,86.532,0.5]
[1772805178866,1e-08,86.597,86.536,0.5]
[1772805179264,1e-08,86.597,86.534,0.28432314]
[1772805179265,1e-08,86.597,86.541,0.5]
[1772805179464,1e-08,86.597,86.542,0.5]
[1772805181460,1e-08,86.597,86.544,0.5]
[1772805182166,1e-08,86.597,86.548,0.5]
[1772805182793,1e-08,86.597,86.55,0.28432314]
[1772805182958,1e-08,86.597,86.551,0.5]
[1772805183468,1e-08,86.597,86.553,0.5]
[1772805185677,11.54747745,86.599,86.555,0.5]
[1772805187088,40.41617108,86.599,86.555,0.5]
[1772805188582,40.41617108,86.599,86.54,3.69383402]
[1772805188583,0.69769295,86.604,86.557,0.5]
[1772805189162,0.69769295,86.604,86.558,0.5]
[1772805189588,11.5469441,86.603,86.558,0.5]
[1772805190480,40.41430435,86.603,86.56,0.5]
[1772805191060,11.5469441,86.603,86.56,0.5]
[1772805192480,11.5469441,86.603,86.562,0.5]
[1772805192685,10.48810612,86.6,86.542,0.5]
[1772805192882,0.28432314,86.599,86.542,0.5]
[1772805194768,0.28432314,86.597,86.544,0.5]
[1772805194983,10.48810612,86.59,86.544,0.5]
[1772805195178,0.28432314,86.597,86.544,0.5]
[1772805195967,10.48810612,86.59,86.543,40.44232346]
[1772805196369,10.48810612,86.59,86.544,0.5]
[1772805196569,0.28432314,86.597,86.544,0.5]
[1772805197188,0.28432314,86.595,86.546,0.5]
[1772805198588,10.48810612,86.58,86.539,11.55542595]
[1772805198969,98.15695875,86.596,86.521,3.69383402]
[1772805198970,10.48810612,86.57,86.527,11.55705998]
[1772805199268,40.43017707,86.569,86.527,11.55705998]
[1772805199968,11.55147916,86.569,86.528,0.5]
[1772805200992,11.55014495,86.579,86.528,0.5]
[1772805201289,40.7051618,86.589,86.53,0.5]
[1772805202071,11.54881104,86.589,86.531,0.5]
[1772805202967,11.54881104,86.589,86.533,0.5]
[1772805203368,0.28432314,86.599,86.537,3.69383402]
[1772805203579,0.28432314,86.599,86.538,0.5]
[1772805204393,10.48810612,86.59,86.538,0.5]
[1772805205588,11.54881104,86.589,86.54,0.5]
[1772805206369,0.28432314,86.588,86.54,0.5]
[1772805206582,40.42083866,86.589,86.481,46.25274946]
[1772805206583,10.48810612,86.58,86.53,0.5]
[1772805206782,10.48810612,86.57,86.53,0.5]
[1772805206989,0.28432314,86.588,86.53,0.5]
[1772805207182,10.48810612,86.58,86.53,0.5]
[1772805207386,40.42083866,86.589,86.53,0.5]
[1772805207702,10.48810612,86.58,86.532,0.5]
[1772805207993,0.28432314,86.569,86.522,0.5]
[1772805208196,10.48810612,86.56,86.522,0.5]
[1772805208374,40.42177231,86.587,86.522,0.5]
[1772805208582,0.28432314,86.586,86.522,0.5]
[1772805209596,40.43017707,86.569,86.524,0.5]
[1772805211585,40.41523769,86.601,86.526,0.5]
[1772805211785,0.28432314,86.589,86.526,0.5]
[1772805212184,10.48810612,86.58,86.526,0.5]
[1772805212505,0.28432314,86.589,86.526,0.5]
[1772805213591,0.28432314,86.587,86.528,0.5]
[1772805213975,10.48810612,86.58,86.528,0.5]
[1772805214406,10.48810612,86.57,86.528,0.5]
[1772805214602,0.28432314,86.569,86.528,0.5]
[1772805214801,0.28432314,86.569,86.518,28.89560366]
[1772805214802,10.48810612,86.56,86.523,11.55753755]
[1772805215606,11.55281368,86.559,86.524,0.5]
[1772805216798,40.43484789,86.559,86.524,0.5]
[1772805217001,40.43484789,86.559,86.523,11.55753755]
[1772805217199,10.48810612,86.55,86.515,11.55868924]
[1772805217600,40.4395198,86.549,86.515,11.55868924]
[1772805219599,10.48810612,86.57,86.516,0.5]
[1772805219900,10.48810612,86.56,86.516,0.5]
[1772805220620,10.48810612,86.55,86.511,11.55912832]
[1772805220796,10.48810612,86.55,86.512,0.5]
[1772805221712,10.48810612,86.54,86.504,11.56015906]
[1772805222807,10.48810612,86.52,86.489,11.56208079]
[1772805222994,10.48810612,86.53,86.49,0.5]
[1772805223198,11.55414851,86.549,86.49,0.5]
[1772805223705,10.48810612,86.58,86.495,0.5]
[1772805223907,10.48810612,86.58,86.496,0.5]
[1772805224110,10.48810612,86.57,86.496,0.5]
[1772805224312,0.28432314,86.569,86.496,0.5]
[1772805224511,10.48810612,86.58,86.496,0.5]
[1772805225220,10.48810612,86.57,86.496,0.5]
[1772805225424,10.48810612,86.58,86.496,0.5]
[1772805225812,40.42597426,86.578,86.501,0.5]
[1772805226115,0.14216157,86.577,86.502,0.5]
[1772805226298,0.28432314,86.577,86.502,0.5]
[1772805227105,10.48810612,86.56,86.502,0.5]
[1772805227313,0.28432314,86.569,86.502,0.5]